fUSD/lending_fUSD_20260610
["ID","MTS","AMOUNT","RATE_DAILY","PERIOD"]
[424699200,1781061041000,-500.0,0.00014999,2]
[424699202,1781061041000,-500.0,0.00014999,2]
[424699206,1781061041000,-500.0,0.00014999,2]
[424699208,1781061041000,-500.0,0.00014999,2]
[424699207,1781061041000,-500.0,0.00014999,2]
[424699210,1781061041000,-500.0,0.00014999,2]
[424699209,1781061041000,-500.0,0.00014999,2]
[424699201,1781061041000,-500.0,0.00014999,2]
[424699212,1781061041000,-500.0,0.00014999,2]
[424699233,1781061042000,-467.74,0.00015,2]
[424699234,1781061042000,-765.0,0.00014735,2]
[424699232,1781061042000,-451.0,0.00013498,2]
[424699244,1781061045000,-656.38,0.00015,2]
[424699243,1781061045000,-5807.72551194,0.00015,2]
[424699242,1781061045000,-518.86591169,0.00014735,2]
[424699241,1781061045000,-511.0,0.00014735,2]
[424699245,1781061046000,-974067.29001833,0.00015,2]
[424699250,1781061308000,250.0,0.00030137,120]
[424699251,1781061331000,250.0,0.00030137,120]
[424699252,1781061336000,250.0,0.00030137,120]
[424699253,1781061338000,250.0,0.00030137,120]
[424699254,1781061339000,250.0,0.00030137,120]
[424699257,1781061462000,250.0,0.00030137,120]
[424699258,1781061463000,250.0,0.00030137,120]
[424699260,1781061609000,1000.0,0.00030137,120]
[424699263,1781061812000,1000.0,0.00027641,120]
[424699302,1781062231000,-1519.09013553,0.00010489,2]
[424699303,1781062231000,-3320.76159827,0.00010489,2]
[424699304,1781062231000,-215.92376884,0.00010489,2]
[424699309,1781062231000,-166.66,0.00011927,2]
[424699307,1781062231000,-271.78772236,0.000107,2]
[424699305,1781062231000,-150.0,0.00010489,2]
[424699308,1781062231000,-258.42519712,0.000114,2]
[424699310,1781062231000,-166.66,0.00012178,2]
[424699311,1781062231000,-2801.09,0.00012271,2]
[424699312,1781062231000,-150.0,0.00012299,2]
[424699306,1781062231000,-153.72,0.00010489,2]
[424699313,1781062232000,-155.37,0.00012337,2]
[424699316,1781062232000,-108.79306394,0.00012624,2]
[424699317,1781062232000,-6969.64687369,0.00012624,2]
[424699314,1781062232000,-166.66,0.00012429,2]
[424699318,1781062232000,-881.80625,0.00012624,2]
[424699315,1781062232000,-2801.09,0.00012578,2]
[424699362,1781062238000,-500.0,0.00013287,2]
[424699354,1781062238000,-500.0,0.00013287,2]
[424699356,1781062238000,-500.0,0.00013287,2]
[424699353,1781062238000,-239.46329706,0.0001323,2]
[424699358,1781062238000,-500.0,0.00013287,2]
[424699364,1781062238000,-500.0,0.00013287,2]
[424699363,1781062238000,-500.0,0.00013287,2]
[424699366,1781062238000,-500.0,0.00013287,2]
[424699361,1781062238000,-537.15353783,0.00013287,2]
[424699365,1781062238000,-500.0,0.00013287,2]
[424699369,1781062238000,-500.0,0.00013287,2]
[424699367,1781062238000,-500.0,0.00013287,2]
[424699359,1781062238000,-500.0,0.00013287,2]
[424699368,1781062238000,-500.0,0.00013287,2]
[424699350,1781062238000,-1500000.0,0.00013198,2]
[424699370,1781062238000,-500.0,0.00013287,2]
[424699371,1781062238000,-500.0,0.00013287,2]
[424699373,1781062238000,-500.0,0.00013287,2]
[424699377,1781062238000,-500.0,0.00013287,2]
[424699375,1781062238000,-500.0,0.00013287,2]
[424699379,1781062238000,-500.0,0.00013287,2]
[424699360,1781062238000,-500.0,0.00013287,2]
[424699348,1781062238000,-150.0,0.00013197,2]
[424699347,1781062238000,-2801.09,0.00013191,2]
[424699346,1781062238000,-585.1223402,0.00013188,2]
[424699328,1781062238000,-764.8018764,0.00012624,2]
[424699329,1781062238000,-4606.99327926,0.00012624,2]
[424699330,1781062238000,-326.87236878,0.00012624,2]
[424699333,1781062238000,-7060.92014268,0.00012624,2]
[424699332,1781062238000,-2148.77700831,0.00012624,2]
[424699331,1781062238000,-705.39,0.00012624,2]
[424699334,1781062238000,-942.62744777,0.00012624,2]
[424699335,1781062238000,-1410.0,0.00012624,2]
[424699342,1781062238000,-1773.80023747,0.00013129,2]
[424699336,1781062238000,-3852.14068917,0.00012624,2]
[424699345,1781062238000,-166.66,0.00013183,2]
[424699343,1781062238000,-1243.05848016,0.00013129,2]
[424699337,1781062238000,-166.66,0.0001268,2]
[424699338,1781062238000,-157.0,0.00012697,2]
[424699341,1781062238000,-166.66,0.00012932,2]
[424699344,1781062238000,-897.43295589,0.0001313,2]
[424699340,1781062238000,-2801.09,0.00012885,2]
[424699339,1781062238000,-500.0,0.00012849,2]
[424699349,1781062238000,-2500.0,0.00013198,2]
[424699352,1781062238000,-458.12494548,0.0001323,2]
[424699351,1781062238000,-163.65,0.0001323,2]
[424699357,1781062238000,-500.0,0.00013287,2]
[424699372,1781062238000,-500.0,0.00013287,2]
[424699393,1781062238000,-1773.80023741,0.00013326,2]
[424699385,1781062238000,-2000.0,0.00013288,2]
[424699418,1781062238000,-897.43295584,0.00013523,2]
[424699411,1781062238000,-150.0,0.00013488,2]
[424699420,1781062238000,-160.0,0.00013551,2]
[424699415,1781062238000,-458.12494546,0.00013508,2]
[424699416,1781062238000,-166.68,0.00013515,2]
[424699412,1781062238000,-150.0,0.00013488,2]
[424699417,1781062238000,-1773.80023741,0.00013523,2]
[424699413,1781062238000,-458.0,0.00013498,2]
[424699422,1781062238000,-150.0,0.00013595,2]
[424699432,1781062238000,-150.0,0.00013702,2]
[424699423,1781062238000,-150.0,0.00013609,2]
[424699424,1781062238000,-1243.05848013,0.00013635,2]
[424699429,1781062238000,-500.0,0.00013698,2]
[424699421,1781062238000,-150.0,0.00013569,2]
[424699426,1781062238000,-150.0,0.0001365,2]
[424699425,1781062238000,-150.0,0.00013638,2]
[424699430,1781062238000,-500.0,0.00013698,2]
[424699431,1781062238000,-200.0,0.00013699,2]
[424699427,1781062238000,-150.0,0.00013654,2]
[424699428,1781062238000,-150.0,0.0001369,2]
[424699383,1781062238000,-250.0,0.00013288,2]
[424699419,1781062238000,-150.0,0.00013528,2]
[424699414,1781062238000,-2801.09,0.00013498,2]
[424699400,1781062238000,-445.0,0.00013398,2]
[424699407,1781062238000,-150.0,0.00013488,2]
[424699381,1781062238000,-500.0,0.00013287,2]
[424699410,1781062238000,-150.0,0.00013488,2]
[424699386,1781062238000,-500.0,0.00013297,2]
[424699392,1781062238000,-500.0,0.00013297,2]
[424699396,1781062238000,-1243.05848013,0.00013382,2]
[424699391,1781062238000,-500.0,0.00013297,2]
[424699389,1781062238000,-500.0,0.00013297,2]
[424699395,1781062238000,-278.27112062,0.0001333,2]
[424699390,1781062238000,-500.0,0.00013297,2]
[424699388,1781062238000,-500.0,0.00013297,2]
[424699394,1781062238000,-897.43295584,0.00013327,2]
[424699397,1781062238000,-33274.8187,0.00013398,2]
[424699399,1781062238000,-452.0,0.00013398,2]
[424699401,1781062238000,-2000.0,0.00013398,2]
[424699402,1781062238000,-160.03,0.00013405,2]
[424699409,1781062238000,-150.0,0.00013488,2]
[424699403,1781062238000,-225.24,0.00013405,2]
[424699406,1781062238000,-458.0,0.00013476,2]
[424699405,1781062238000,-285.38,0.00013405,2]
[424699404,1781062238000,-2000.0,0.00013405,2]
[424699398,1781062238000,-447.0,0.00013398,2]
[424699408,1781062238000,-150.0,0.00013488,2]
[424699471,1781062239000,-150.0,0.00014154,2]
[424699475,1781062239000,-2000.0,0.0001422,2]
[424699472,1781062239000,-150.0,0.00014176,2]
[424699460,1781062239000,-150.0,0.00014023,2]
[424699464,1781062239000,-150.0,0.00014087,2]
[424699470,1781062239000,-1243.05848013,0.00014141,2]
[424699466,1781062239000,-1773.80023741,0.00014113,2]
[424699462,1781062239000,-458.12494546,0.00014065,2]
[424699476,1781062239000,-150.0,0.00014237,2]
[424699469,1781062239000,-150.0,0.00014136,2]
[424699468,1781062239000,-150.0,0.0001413,2]
[424699481,1781062239000,-1773.80023741,0.0001431,2]
[424699473,1781062239000,-150.0,0.00014217,2]
[424699474,1781062239000,-500.0,0.0001422,2]
[424699478,1781062239000,-150.0,0.00014257,2]
[424699480,1781062239000,-255.0,0.00014306,2]
[424699477,1781062239000,-150.0,0.00014237,2]
[424699484,1781062239000,-458.12494546,0.00014343,2]
[424699487,1781062239000,-150.0,0.00014379,2]
[424699482,1781062239000,-150.0,0.0001432,2]
[424699461,1781062239000,-150.0,0.00014055,2]
[424699479,1781062239000,-150.0,0.00014298,2]
[424699486,1781062239000,-150.0,0.00014344,2]
[424699467,1781062239000,-150.0,0.0001413,2]
[424699459,1781062239000,-150.0,0.00014014,2]
[424699449,1781062239000,-1773.80023741,0.00013916,2]
[424699465,1781062239000,-150.0,0.00014095,2]
[424699433,1781062239000,-150.0,0.00013702,2]
[424699436,1781062239000,-150.0,0.00013731,2]
[424699437,1781062239000,-150.0,0.00013771,2]
[424699435,1781062239000,-897.43295584,0.0001372,2]
[424699438,1781062239000,-458.12494546,0.00013787,2]
[424699443,1781062239000,-150.0,0.00013852,2]
[424699444,1781062239000,-357.53323382,0.00013859,2]
[424699434,1781062239000,-1773.80023741,0.00013719,2]
[424699441,1781062239000,-150.0,0.00013812,2]
[424699440,1781062239000,-150.0,0.00013809,2]
[424699439,1781062239000,-150.0,0.00013787,2]
[424699463,1781062239000,-239.46329705,0.00014065,2]
[424699446,1781062239000,-150.0,0.00013893,2]
[424699448,1781062239000,-150.0,0.00013916,2]
[424699447,1781062239000,-150.0,0.00013916,2]
[424699485,1781062239000,-150.0,0.00014344,2]
[424699454,1781062239000,-150.0,0.00013987,2]
[424699451,1781062239000,-150.0,0.00013937,2]
[424699455,1781062239000,-250.0,0.00014,2]
[424699450,1781062239000,-150.0,0.00013933,2]
[424699453,1781062239000,-150.0,0.00013987,2]
[424699456,1781062239000,-500.0,0.00014006,2]
[424699458,1781062239000,-502.29186961,0.00014006,2]
[424699457,1781062239000,-500.0,0.00014006,2]
[424699445,1781062239000,-1243.05848013,0.00013888,2]
[424699483,1781062239000,-150.0,0.00014338,2]
[424699442,1781062239000,-150.0,0.00013821,2]
[424699491,1781062239000,-150.0,0.00014451,2]
[424699520,1781062239000,-500.0,0.00014758,2]
[424699516,1781062239000,-172.73075392,0.00014722,2]
[424699522,1781062239000,-25000.0,0.00014768,3]
[424699523,1781062239000,-150.0,0.00014772,2]
[424699524,1781062239000,-150.0,0.00014772,2]
[424699525,1781062239000,-25000.0,0.00014777,3]
[424699531,1781062239000,-350.0,0.000148,2]
[424699528,1781062239000,-25000.0,0.00014786,3]
[424699526,1781062239000,-287.87,0.00014778,2]
[424699530,1781062239000,-150.0,0.00014798,2]
[424699529,1781062239000,-25000.0,0.00014794,3]
[424699521,1781062239000,-25000.0,0.00014759,3]
[424699527,1781062239000,-150.0,0.00014784,2]
[424699533,1781062239000,-25000.0,0.00014803,3]
[424699532,1781062239000,-2368.50890741,0.000148,2]
[424699534,1781062239000,-25000.0,0.00014812,3]
[424699542,1781062239000,-4395.152,0.00014844,2]
[424699540,1781062239000,-150.0,0.00014836,2]
[424699541,1781062239000,-277.149,0.00014844,2]
[424699539,1781062239000,-150.0,0.00014824,2]
[424699536,1781062239000,-1500.0,0.00014813,2]
[424699537,1781062239000,-302.03939736,0.00014814,2]
[424699535,1781062239000,-302.03939736,0.00014813,2]
[424699538,1781062239000,-150.0,0.0001482,2]
[424699488,1781062239000,-150.0,0.00014387,2]
[424699519,1781062239000,-25000.0,0.0001475,3]
[424699518,1781062239000,-150.0,0.00014743,2]
[424699452,1781062239000,-150.0,0.00013974,2]
[424699515,1781062239000,-1773.80023741,0.00014703,2]
[424699495,1781062239000,-350.0,0.00014496,2]
[424699517,1781062239000,-448.0,0.00014735,2]
[424699490,1781062239000,-150.0,0.00014419,2]
[424699492,1781062239000,-150.0,0.0001446,2]
[424699493,1781062239000,-150.0,0.00014487,2]
[424699489,1781062239000,-1243.05848013,0.00014394,2]
[424699497,1781062239000,-1773.80023741,0.00014506,2]
[424699496,1781062239000,-150.0,0.000145,2]
[424699500,1781062239000,-172.73075392,0.00014537,2]
[424699501,1781062239000,-150.0,0.00014541,2]
[424699498,1781062239000,-350.0,0.00014521,2]
[424699502,1781062239000,-150.0,0.00014558,2]
[424699494,1781062239000,-150.0,0.00014487,2]
[424699504,1781062239000,-150.0,0.00014581,2]
[424699506,1781062239000,-150.0,0.00014622,2]
[424699510,1781062239000,-150.0,0.00014653,2]
[424699508,1781062239000,-342.663873,0.00014651,2]
[424699509,1781062239000,-1028.031621,0.00014651,2]
[424699507,1781062239000,-1243.05848013,0.00014647,2]
[424699503,1781062239000,-150.0,0.00014558,2]
[424699505,1781062239000,-458.12494546,0.00014622,2]
[424699512,1781062239000,-150.0,0.00014665,2]
[424699514,1781062239000,-150.0,0.00014703,2]
[424699499,1781062239000,-150.0,0.00014537,2]
[424699513,1781062239000,-150.0,0.00014687,2]
[424699511,1781062239000,-150.0,0.00014662,2]
[424699578,1781062240000,-291.61486188,0.00014908,2]
[424699577,1781062240000,-150.0,0.00014905,2]
[424699572,1781062240000,-2027.28542922,0.000149,2]
[424699576,1781062240000,-1773.80023741,0.000149,2]
[424699574,1781062240000,-239.46329705,0.000149,2]
[424699573,1781062240000,-167.35662824,0.000149,2]
[424699579,1781062240000,-150.0,0.00014946,2]
[424699571,1781062240000,-444.19003233,0.000149,2]
[424699575,1781062240000,-1243.05848013,0.000149,2]
[424699581,1781062240000,-256.2242573,0.00014986,2]
[424699587,1781062240000,-500.0,0.00014988,2]
[424699583,1781062240000,-178.23604891,0.00014986,2]
[424699582,1781062240000,-182.5276494,0.00014986,2]
[424699584,1781062240000,-184.89089988,0.00014986,2]
[424699586,1781062240000,-190.96821533,0.00014986,2]
[424699585,1781062240000,-155.55734656,0.00014986,2]
[424699589,1781062240000,-585.1223402,0.0001499,2]
[424699588,1781062240000,-117918.73704676,0.00014989,2]
[424699590,1781062240000,-585.1223402,0.0001499,2]
[424699592,1781062240000,-184.708326,0.00014997,2]
[424699569,1781062240000,-12945.1,0.000149,2]
[424699580,1781062240000,-500.0,0.00014967,2]
[424699570,1781062240000,-12945.14,0.000149,2]
[424699559,1781062240000,-444.19003233,0.000149,2]
[424699566,1781062240000,-12945.1,0.000149,2]
[424699543,1781062240000,-500.0,0.00014849,2]
[424699544,1781062240000,-104078.48932605,0.0001485,2]
[424699547,1781062240000,-5800.0,0.00014866,2]
[424699545,1781062240000,-5800.0,0.00014858,2]
[424699551,1781062240000,-150.0,0.00014879,2]
[424699553,1781062240000,-166.0,0.0001488,2]
[424699549,1781062240000,-8831.0,0.00014877,2]
[424699548,1781062240000,-5800.0,0.00014874,2]
[424699546,1781062240000,-150.0,0.00014865,2]
[424699550,1781062240000,-200.0,0.00014879,2]
[424699554,1781062240000,-163.0,0.0001488,2]
[424699568,1781062240000,-12945.1,0.000149,2]
[424699552,1781062240000,-163.0,0.0001488,2]
[424699591,1781062240000,-184.708326,0.00014997,2]
[424699561,1781062240000,-167.35662824,0.000149,2]
[424699562,1781062240000,-10000.0,0.000149,2]
[424699560,1781062240000,-2027.28542922,0.000149,2]
[424699556,1781062240000,-5800.0,0.00014891,2]
[424699557,1781062240000,-444.19003234,0.00014899,2]
[424699558,1781062240000,-167.35662824,0.00014899,2]
[424699564,1781062240000,-458.12494546,0.000149,2]
[424699565,1781062240000,-5800.0,0.000149,2]
[424699563,1781062240000,-10807.36198924,0.000149,2]
[424699567,1781062240000,-12945.1,0.000149,2]
[424699555,1781062240000,-5800.0,0.00014883,2]
[424699593,1781062240000,-184.708326,0.00014997,2]
[424699601,1781062240000,-6884.6152606,0.00014999,2]
[424699596,1781062240000,-500.0,0.00014998,2]
[424699622,1781062240000,-500.0,0.00014999,2]
[424699625,1781062240000,-500.0,0.00014999,2]
[424699624,1781062240000,-500.0,0.00014999,2]
[424699623,1781062240000,-500.0,0.00014999,2]
[424699628,1781062240000,-500.0,0.00014999,2]
[424699595,1781062240000,-500.0,0.00014998,2]
[424699627,1781062240000,-500.0,0.00014999,2]
[424699626,1781062240000,-500.0,0.00014999,2]
[424699634,1781062240000,-666.0,0.00014999,2]
[424699633,1781062240000,-300.0,0.00014999,2]
[424699621,1781062240000,-500.0,0.00014999,2]
[424699640,1781062240000,-300.0,0.00014999,2]
[424699635,1781062240000,-300.0,0.00014999,2]
[424699638,1781062240000,-666.0,0.00014999,2]
[424699636,1781062240000,-300.0,0.00014999,2]
[424699639,1781062240000,-300.0,0.00014999,2]
[424699641,1781062240000,-6450494.8579686,0.00015,2]
[424699642,1781062240000,-2111.665,0.00015,2]
[424699643,1781062240000,-2560.5904227,0.00015,2]
[424699644,1781062240000,-265.712551,0.00015,2]
[424699646,1781062240000,-9503.54,0.00015,2]
[424699645,1781062240000,-2851.21217869,0.00015,2]
[424699637,1781062240000,-300.0,0.00014999,2]
[424699631,1781062240000,-300.0,0.00014999,2]
[424699629,1781062240000,-50566.4796823,0.00014999,2]
[424699630,1781062240000,-300.0,0.00014999,2]
[424699597,1781062240000,-500.0,0.00014998,2]
[424699594,1781062240000,-500.0,0.00014998,2]
[424699599,1781062240000,-52977.4366739,0.00014999,2]
[424699632,1781062240000,-300.0,0.00014999,2]
[424699600,1781062240000,-642371.5357141,0.00014999,2]
[424699602,1781062240000,-14882.0475145,0.00014999,2]
[424699603,1781062240000,-3842.0372703,0.00014999,2]
[424699604,1781062240000,-177176.9654755,0.00014999,2]
[424699607,1781062240000,-158932.3100217,0.00014999,2]
[424699605,1781062240000,-2704.7365885,0.00014999,2]
[424699608,1781062240000,-250.0,0.00014999,2]
[424699598,1781062240000,-4478.51621,0.00014999,2]
[424699612,1781062240000,-500.0,0.00014999,2]
[424699606,1781062240000,-112294.4950007,0.00014999,2]
[424699619,1781062240000,-500.0,0.00014999,2]
[424699617,1781062240000,-500.0,0.00014999,2]
[424699616,1781062240000,-500.0,0.00014999,2]
[424699620,1781062240000,-500.0,0.00014999,2]
[424699613,1781062240000,-500.0,0.00014999,2]
[424699618,1781062240000,-500.0,0.00014999,2]
[424699614,1781062240000,-500.0,0.00014999,2]
[424699610,1781062240000,-500.0,0.00014999,2]
[424699611,1781062240000,-500.0,0.00014999,2]
[424699609,1781062240000,-2000.0,0.00014999,2]
[424699615,1781062240000,-500.0,0.00014999,2]
[424699647,1781062241000,-273.1454,0.00013917,2]
[424699650,1781062241000,-1178.33043343,0.00015,2]
[424699648,1781062241000,-624.28755584,0.00013917,2]
[424699651,1781062241000,-359.72147329,0.00015,2]
[424699654,1781062241000,-457.04884248,0.00015,2]
[424699655,1781062241000,-614.9631,0.00015,2]
[424699649,1781062241000,-43468.94536999,0.00015,2]
[424699653,1781062241000,-463.52887949,0.00015,2]
[424699677,1781062242000,-2766.70849348,0.00015,2]
[424699676,1781062242000,-396.39720214,0.00015,2]
[424699674,1781062242000,-1103.63858158,0.00015,2]
[424699675,1781062242000,-396.63499246,0.00015,2]
[424699673,1781062242000,-314.47253761,0.00015,2]
[424699678,1781062243000,-465.43449993,0.00015,2]
[424699679,1781062243000,-659.80527669,0.00015,2]
[424699688,1781062245000,-405.76836706,0.00014113,2]
[424699690,1781062245000,-1330.8298837,0.00015,2]
[424699689,1781062245000,-491.66458878,0.00014113,2]
[424699691,1781062246000,-5689.00094114,0.00015,2]
[424699692,1781062246000,-10480.03,0.00015,2]
[424699693,1781062246000,-684.78,0.00015,2]
[424699694,1781062246000,-28781.93505467,0.00015,2]
[424699695,1781062246000,-38390.94167715,0.00015,2]
[424699704,1781062417000,1000.0,0.00027571,120]
[424699710,1781063015000,1000.0,0.00027555,120]
[424699711,1781063045000,522.0,0.00028493,120]
[424699712,1781063056000,321.08,0.0003,120]
[424699713,1781063304000,-675.72,0.00012379,2]
[424699714,1781063304000,-150.0,0.00012412,2]
[424699716,1781063304000,-166.66,0.00012809,2]
[424699717,1781063304000,-1891.20871795,0.00012825,2]
[424699715,1781063304000,-166.66,0.00012545,2]
[424699729,1781063431000,-300.0,0.00012825,2]
[424699733,1781063432000,-424.0,0.00012825,2]
[424699731,1781063432000,-633.37933997,0.00012825,2]
[424699732,1781063432000,-380.0,0.00012825,2]
[424699768,1781063438000,-459.0,0.00013198,2]
[424699763,1781063438000,-500.0,0.00013197,2]
[424699761,1781063438000,-500.0,0.00013197,2]
[424699757,1781063438000,-445.0,0.00013197,2]
[424699764,1781063438000,-500.0,0.00013197,2]
[424699762,1781063438000,-500.0,0.00013197,2]
[424699765,1781063438000,-4395.152,0.00013198,2]
[424699770,1781063438000,-447.0,0.00013198,2]
[424699778,1781063438000,-445.0,0.00013198,2]
[424699773,1781063438000,-455.0,0.00013198,2]
[424699771,1781063438000,-455.0,0.00013198,2]
[424699772,1781063438000,-457.0,0.00013198,2]
[424699777,1781063438000,-444.0,0.00013198,2]
[424699774,1781063438000,-449.0,0.00013198,2]
[424699779,1781063438000,-445.0,0.00013198,2]
[424699776,1781063438000,-452.0,0.00013198,2]
[424699760,1781063438000,-500.0,0.00013197,2]
[424699769,1781063438000,-2000.0,0.00013198,2]
[424699767,1781063438000,-459.0,0.00013198,2]
[424699749,1781063438000,-886.90011875,0.00013098,2]
[424699759,1781063438000,-500.0,0.00013197,2]
[424699740,1781063438000,-3869.73379985,0.00012825,2]
[424699741,1781063438000,-150.0,0.00012843,2]
[424699742,1781063438000,-215.92376884,0.00012861,2]
[424699743,1781063438000,-160.61,0.00012881,2]
[424699745,1781063438000,-159.64219804,0.00013088,2]
[424699744,1781063438000,-166.66,0.00013073,2]
[424699754,1781063438000,-445.0,0.00013197,2]
[424699747,1781063438000,-261.78568312,0.00013098,2]
[424699746,1781063438000,-390.08156014,0.00013088,2]
[424699775,1781063438000,-455.0,0.00013198,2]
[424699748,1781063438000,-621.5292401,0.00013098,2]
[424699750,1781063438000,-250.0,0.00013098,2]
[424699753,1781063438000,-2500.0,0.00013098,2]
[424699751,1781063438000,-2000.0,0.00013098,2]
[424699752,1781063438000,-1500000.0,0.00013098,2]
[424699755,1781063438000,-459.0,0.00013197,2]
[424699756,1781063438000,-457.0,0.00013197,2]
[424699758,1781063438000,-150.0,0.00013197,2]
[424699781,1781063438000,-448.0,0.00013198,2]
[424699766,1781063438000,-277.149,0.00013198,2]
[424699780,1781063438000,-443.0,0.00013198,2]
[424699839,1781063438000,-150.0,0.00013488,2]
[424699841,1781063438000,-150.0,0.00013488,2]
[424699835,1781063438000,-150.0,0.00013488,2]
[424699830,1781063438000,-150.0,0.00013488,2]
[424699828,1781063438000,-156.97,0.00013405,2]
[424699824,1781063438000,-621.52924006,0.00013355,2]
[424699826,1781063438000,-261.78568312,0.00013398,2]
[424699845,1781063438000,-150.0,0.00013553,2]
[424699837,1781063438000,-150.0,0.00013488,2]
[424699843,1781063438000,-886.9001187,0.00013498,2]
[424699853,1781063438000,-153.71535378,0.00013555,2]
[424699849,1781063438000,-500.0,0.00013555,2]
[424699856,1781063438000,-150.0,0.00013557,2]
[424699851,1781063438000,-500.0,0.00013555,2]
[424699858,1781063438000,-150.0,0.00013557,2]
[424699857,1781063438000,-218.83171562,0.00013557,2]
[424699855,1781063438000,-150.0,0.00013557,2]
[424699791,1781063438000,-442.0,0.00013198,2]
[424699847,1781063438000,-500.0,0.00013555,2]
[424699833,1781063438000,-150.0,0.00013488,2]
[424699854,1781063438000,-150.0,0.00013557,2]
[424699820,1781063438000,-2000.0,0.00013319,2]
[424699794,1781063438000,-11677.4861,0.00013198,2]
[424699822,1781063438000,-166.66,0.00013337,2]
[424699782,1781063438000,-452.0,0.00013198,2]
[424699796,1781063438000,-454.0,0.00013198,2]
[424699783,1781063438000,-445.0,0.00013198,2]
[424699784,1781063438000,-444.0,0.00013198,2]
[424699787,1781063438000,-454.0,0.00013198,2]
[424699789,1781063438000,-443.0,0.00013198,2]
[424699798,1781063438000,-455.0,0.00013198,2]
[424699785,1781063438000,-455.0,0.00013198,2]
[424699811,1781063438000,-450.0,0.00013198,2]
[424699800,1781063438000,-448.0,0.00013198,2]
[424699803,1781063438000,-458.0,0.00013198,2]
[424699813,1781063438000,-155.37,0.00013282,2]
[424699806,1781063438000,-453.0,0.00013198,2]
[424699816,1781063438000,-886.9001187,0.00013298,2]
[424699805,1781063438000,-444.0,0.00013198,2]
[424699809,1781063438000,-443.0,0.00013198,2]
[424699818,1781063438000,-160.61,0.00013306,2]
[424699897,1781063439000,-300.0,0.00014107,2]
[424699896,1781063439000,-300.0,0.00014107,2]
[424699894,1781063439000,-150.0,0.00014087,2]
[424699888,1781063439000,-150.0,0.00013987,2]
[424699891,1781063439000,-44763.83047668,0.00014,2]
[424699887,1781063439000,-150.0,0.00013987,2]
[424699893,1781063439000,-150.0,0.00014074,2]
[424699892,1781063439000,-150.0,0.00014009,2]
[424699899,1781063439000,-300.0,0.00014107,2]
[424699900,1781063439000,-300.0,0.00014107,2]
[424699890,1781063439000,-261.78568312,0.00013999,2]
[424699895,1781063439000,-886.9001187,0.00014099,2]
[424699912,1781063439000,-150.0,0.00014139,2]
[424699905,1781063439000,-600.0,0.00014107,2]
[424699901,1781063439000,-600.0,0.00014107,2]
[424699910,1781063439000,-2500.0,0.00014107,2]
[424699903,1781063439000,-600.0,0.00014107,2]
[424699902,1781063439000,-600.0,0.00014107,2]
[424699904,1781063439000,-600.0,0.00014107,2]
[424699907,1781063439000,-2500.0,0.00014107,2]
[424699906,1781063439000,-2500.0,0.00014107,2]
[424699908,1781063439000,-2500.0,0.00014107,2]
[424699914,1781063439000,-160.61,0.00014157,2]
[424699917,1781063439000,-150.0,0.00014237,2]
[424699898,1781063439000,-300.0,0.00014107,2]
[424699920,1781063439000,-886.9001187,0.00014299,2]
[424699909,1781063439000,-2500.0,0.00014107,2]